Workbook

Sheet PARTICIPANTES
A2: ID | B2: VENDEDORES | D2: ID | E2: COMPRADORES DNR | G2: VENDEDORES | H2: =20-COUNTBLANK(VENDEDORES) -> 0
A3: 1 | D3: 1 | G3: COMPRADORES | H3: =20-COUNTBLANK(COMPRADORES) -> 0
A4: 2 | D4: 2
A5: 3 | D5: 3
A6: 4 | D6: 4
A7: 5 | D7: 5
A8: 6 | D8: 6
A9: 7 | D9: 7
A10: 8 | D10: 8
A11: 9 | D11: 9
A12: 10 | D12: 10
A13: 11 | D13: 11
A14: 12 | D14: 12
A15: 13 | D15: 13
A16: 14 | D16: 14
A17: 15 | D17: 15
A18: 16 | D18: 16
A19: 17 | D19: 17
A20: 18 | D20: 18
A21: 19 | D21: 19
A22: 20 | D22: 20

Sheet DEMANDA REGULADA
B2: CURVA DE DEMANDA REGULADA
A3: ID | B3: PRECIO ($/kWh) | C3: NUM PRODUCTOS
A4: 1 | B4: =+$F$5-(($F$5/199)*(A4-1)) -> 0 | C4: =+ROUND(IF(B4>$F$6,(B4-$F$5)/(($F$6-$F$5)/$F$4),$F$4),0) -> 0 | E4: DEM OB | G4: Productos
A5: 2 | B5: =+$F$5-(($F$5/199)*(A5-1)) -> 0 | C5: =+ROUND(IF(B5>$F$6,(B5-$F$5)/(($F$6-$F$5)/$F$4),$F$4),0) -> 0 | E5: PP2 | G5: $/kWh
A6: 3 | B6: 0 | C6: 0 | E6: PP1 | G6: $/kWh
A7: 4 | B7: 0 | C7: 0
A8: 5 | B8: 0 | C8: 0
A9: 6 | B9: 0 | C9: 0
A10: 7 | B10: 0 | C10: 0
A11: 8 | B11: 0 | C11: 0
A12: 9 | B12: 0 | C12: 0
A13: 10 | B13: 0 | C13: 0
A14: 11 | B14: 0 | C14: 0
A15: 12 | B15: 0 | C15: 0
A16: 13 | B16: 0 | C16: 0
A17: 14 | B17: 0 | C17: 0
A18: 15 | B18: 0 | C18: 0
A19: 16 | B19: 0 | C19: 0
A20: 17 | B20: 0 | C20: 0
A21: 18 | B21: 0 | C21: 0
A22: 19 | B22: 0 | C22: 0
A23: 20 | B23: 0 | C23: 0
A24: 21 | B24: 0 | C24: 0
A25: 22 | B25: 0 | C25: 0
A26: 23 | B26: 0 | C26: 0
A27: 24 | B27: 0 | C27: 0
A28: 25 | B28: 0 | C28: 0
A29: 26 | B29: 0 | C29: 0
A30: 27 | B30: 0 | C30: 0
A31: 28 | B31: 0 | C31: 0
A32: 29 | B32: 0 | C32: 0
A33: 30 | B33: 0 | C33: 0
A34: 31 | B34: 0 | C34: 0
A35: 32 | B35: 0 | C35: 0
A36: 33 | B36: 0 | C36: 0
A37: 34 | B37: 0 | C37: 0
A38: 35 | B38: 0 | C38: 0
A39: 36 | B39: 0 | C39: 0
A40: 37 | B40: 0 | C40: 0
A41: 38 | B41: 0 | C41: 0
A42: 39 | B42: 0 | C42: 0
A43: 40 | B43: 0 | C43: 0
A44: 41 | B44: 0 | C44: 0
A45: 42 | B45: 0 | C45: 0
A46: 43 | B46: 0 | C46: 0
A47: 44 | B47: 0 | C47: 0
A48: 45 | B48: 0 | C48: 0
A49: 46 | B49: 0 | C49: 0
A50: 47 | B50: 0 | C50: 0
A51: 48 | B51: 0 | C51: 0
A52: 49 | B52: 0 | C52: 0
A53: 50 | B53: 0 | C53: 0
A54: 51 | B54: 0 | C54: 0
A55: 52 | B55: 0 | C55: 0
A56: 53 | B56: 0 | C56: 0
A57: 54 | B57: 0 | C57: 0
A58: 55 | B58: 0 | C58: 0
A59: 56 | B59: 0 | C59: 0
A60: 57 | B60: 0 | C60: 0
A61: 58 | B61: 0 | C61: 0
A62: 59 | B62: 0 | C62: 0
A63: 60 | B63: 0 | C63: 0
A64: 61 | B64: 0 | C64: 0
A65: 62 | B65: 0 | C65: 0
A66: 63 | B66: 0 | C66: 0
A67: 64 | B67: 0 | C67: 0
A68: 65 | B68: 0 | C68: 0
A69: 66 | B69: =+$F$5-(($F$5/199)*(A69-1)) -> 0 | C69: =+ROUND(IF(B69>$F$6,(B69-$F$5)/(($F$6-$F$5)/$F$4),$F$4),0) -> 0
A70: 67 | B70: 0 | C70: 0
A71: 68 | B71: 0 | C71: 0
A72: 69 | B72: 0 | C72: 0
A73: 70 | B73: 0 | C73: 0
A74: 71 | B74: 0 | C74: 0
A75: 72 | B75: 0 | C75: 0
A76: 73 | B76: 0 | C76: 0
A77: 74 | B77: 0 | C77: 0
A78: 75 | B78: 0 | C78: 0
A79: 76 | B79: 0 | C79: 0
A80: 77 | B80: 0 | C80: 0
A81: 78 | B81: 0 | C81: 0
A82: 79 | B82: 0 | C82: 0
A83: 80 | B83: 0 | C83: 0
A84: 81 | B84: 0 | C84: 0
A85: 82 | B85: 0 | C85: 0
A86: 83 | B86: 0 | C86: 0
A87: 84 | B87: 0 | C87: 0
A88: 85 | B88: 0 | C88: 0
A89: 86 | B89: 0 | C89: 0
A90: 87 | B90: 0 | C90: 0
A91: 88 | B91: 0 | C91: 0
A92: 89 | B92: 0 | C92: 0
A93: 90 | B93: 0 | C93: 0
A94: 91 | B94: 0 | C94: 0
A95: 92 | B95: 0 | C95: 0
A96: 93 | B96: 0 | C96: 0
A97: 94 | B97: 0 | C97: 0
A98: 95 | B98: 0 | C98: 0
A99: 96 | B99: 0 | C99: 0
A100: 97 | B100: 0 | C100: 0
A101: 98 | B101: 0 | C101: 0
A102: 99 | B102: 0 | C102: 0
A103: 100 | B103: 0 | C103: 0
A104: 101 | B104: 0 | C104: 0
A105: 102 | B105: 0 | C105: 0
A106: 103 | B106: 0 | C106: 0
A107: 104 | B107: 0 | C107: 0
A108: 105 | B108: 0 | C108: 0
A109: 106 | B109: 0 | C109: 0
A110: 107 | B110: 0 | C110: 0
A111: 108 | B111: 0 | C111: 0
A112: 109 | B112: 0 | C112: 0
A113: 110 | B113: 0 | C113: 0
A114: 111 | B114: 0 | C114: 0
A115: 112 | B115: 0 | C115: 0
A116: 113 | B116: 0 | C116: 0
A117: 114 | B117: 0 | C117: 0
A118: 115 | B118: 0 | C118: 0
A119: 116 | B119: 0 | C119: 0
A120: 117 | B120: 0 | C120: 0
A121: 118 | B121: 0 | C121: 0
A122: 119 | B122: 0 | C122: 0
A123: 120 | B123: 0 | C123: 0
A124: 121 | B124: 0 | C124: 0
A125: 122 | B125: 0 | C125: 0
A126: 123 | B126: 0 | C126: 0
A127: 124 | B127: 0 | C127: 0
A128: 125 | B128: 0 | C128: 0
A129: 126 | B129: 0 | C129: 0
A130: 127 | B130: 0 | C130: 0
A131: 128 | B131: 0 | C131: 0
A132: 129 | B132: 0 | C132: 0
A133: 130 | B133: =+$F$5-(($F$5/199)*(A133-1)) -> 0 | C133: =+ROUND(IF(B133>$F$6,(B133-$F$5)/(($F$6-$F$5)/$F$4),$F$4),0) -> 0
A134: 131 | B134: 0 | C134: 0
A135: 132 | B135: 0 | C135: 0
A136: 133 | B136: 0 | C136: 0
A137: 134 | B137: 0 | C137: 0
A138: 135 | B138: 0 | C138: 0
A139: 136 | B139: 0 | C139: 0
A140: 137 | B140: 0 | C140: 0
A141: 138 | B141: 0 | C141: 0
A142: 139 | B142: 0 | C142: 0
A143: 140 | B143: 0 | C143: 0
A144: 141 | B144: 0 | C144: 0
A145: 142 | B145: 0 | C145: 0
A146: 143 | B146: 0 | C146: 0
A147: 144 | B147: 0 | C147: 0
A148: 145 | B148: 0 | C148: 0
A149: 146 | B149: 0 | C149: 0
A150: 147 | B150: 0 | C150: 0
A151: 148 | B151: 0 | C151: 0
A152: 149 | B152: 0 | C152: 0
A153: 150 | B153: 0 | C153: 0
A154: 151 | B154: 0 | C154: 0
A155: 152 | B155: 0 | C155: 0
A156: 153 | B156: 0 | C156: 0
A157: 154 | B157: 0 | C157: 0
A158: 155 | B158: 0 | C158: 0
A159: 156 | B159: 0 | C159: 0
A160: 157 | B160: 0 | C160: 0
A161: 158 | B161: 0 | C161: 0
A162: 159 | B162: 0 | C162: 0
A163: 160 | B163: 0 | C163: 0
A164: 161 | B164: 0 | C164: 0
A165: 162 | B165: 0 | C165: 0
A166: 163 | B166: 0 | C166: 0
A167: 164 | B167: 0 | C167: 0
A168: 165 | B168: 0 | C168: 0
A169: 166 | B169: 0 | C169: 0
A170: 167 | B170: 0 | C170: 0
A171: 168 | B171: 0 | C171: 0
A172: 169 | B172: 0 | C172: 0
A173: 170 | B173: 0 | C173: 0
A174: 171 | B174: 0 | C174: 0
A175: 172 | B175: 0 | C175: 0
A176: 173 | B176: 0 | C176: 0
A177: 174 | B177: 0 | C177: 0
A178: 175 | B178: 0 | C178: 0
A179: 176 | B179: 0 | C179: 0
A180: 177 | B180: 0 | C180: 0
A181: 178 | B181: 0 | C181: 0
A182: 179 | B182: 0 | C182: 0
A183: 180 | B183: 0 | C183: 0
A184: 181 | B184: 0 | C184: 0
A185: 182 | B185: 0 | C185: 0
A186: 183 | B186: 0 | C186: 0
A187: 184 | B187: 0 | C187: 0
A188: 185 | B188: 0 | C188: 0
A189: 186 | B189: 0 | C189: 0
A190: 187 | B190: 0 | C190: 0
A191: 188 | B191: 0 | C191: 0
A192: 189 | B192: 0 | C192: 0
A193: 190 | B193: 0 | C193: 0
A194: 191 | B194: 0 | C194: 0
A195: 192 | B195: 0 | C195: 0
A196: 193 | B196: 0 | C196: 0
A197: 194 | B197: =+$F$5-(($F$5/199)*(A197-1)) -> 0 | C197: =+ROUND(IF(B197>$F$6,(B197-$F$5)/(($F$6-$F$5)/$F$4),$F$4),0) -> 0
A198: 195 | B198: 0 | C198: 0
A199: 196 | B199: 0 | C199: 0
A200: 197 | B200: 0 | C200: 0
A201: 198 | B201: 0 | C201: 0
... 2 more rows

Sheet DEMANDA NR
B1: DEMANDA NR POR AGENTE | H1: DEMANDA NR AGREGADA
A2: ID | B2: AGENTE | C2: PRECIO ($/kWh) | D2: NUM PRODUCTOS | E2: VÁLIDO | G2: ID | H2: PRECIO ($/kWh) | I2: NUM PRODUCTOS
A3: 1 | E3: =+IF(ISERROR(VLOOKUP(B3,COMPRADORES,1,FALSE)),"NO","SI") -> NO | G3: 1 | H3: 0.0001 | I3: 0
A4: 2 | E4: NO | G4: 2 | H4: 0 | I4: 0
A5: 3 | E5: NO | G5: 3
A6: 4 | E6: NO | G6: 4
A7: 5 | E7: NO | G7: 5
A8: 6 | E8: NO | G8: 6
A9: 7 | E9: NO | G9: 7
A10: 8 | E10: NO | G10: 8
A11: 9 | E11: NO | G11: 9
A12: 10 | E12: NO | G12: 10
A13: 11 | E13: NO | G13: 11
A14: 12 | E14: NO | G14: 12
A15: 13 | E15: NO | G15: 13
A16: 14 | E16: NO | G16: 14
A17: 15 | E17: NO | G17: 15
A18: 16 | E18: NO | G18: 16
A19: 17 | E19: NO | G19: 17
A20: 18 | E20: NO | G20: 18
A21: 19 | E21: NO | G21: 19
A22: 20 | E22: NO | G22: 20
A23: 21 | E23: NO | G23: 21
A24: 22 | E24: NO | G24: 22
A25: 23 | E25: NO | G25: 23
A26: 24 | E26: NO | G26: 24
A27: 25 | E27: NO | G27: 25
A28: 26 | E28: NO | G28: 26
A29: 27 | E29: NO | G29: 27
A30: 28 | E30: NO | G30: 28
A31: 29 | E31: NO | G31: 29
A32: 30 | E32: NO | G32: 30
A33: 31 | E33: NO | G33: 31
A34: 32 | E34: NO | G34: 32
A35: 33 | E35: NO | G35: 33
A36: 34 | E36: NO | G36: 34
A37: 35 | E37: NO | G37: 35
A38: 36 | E38: NO | G38: 36
A39: 37 | E39: NO | G39: 37
A40: 38 | E40: NO | G40: 38
A41: 39 | E41: NO | G41: 39
A42: 40 | E42: NO | G42: 40
A43: 41 | E43: NO | G43: 41
A44: 42 | E44: NO | G44: 42
A45: 43 | E45: NO | G45: 43
A46: 44 | E46: NO | G46: 44
A47: 45 | E47: NO | G47: 45
A48: 46 | E48: NO | G48: 46
A49: 47 | E49: NO | G49: 47
A50: 48 | E50: NO | G50: 48
A51: 49 | E51: NO | G51: 49
A52: 50 | E52: NO | G52: 50
A53: 51 | E53: NO | G53: 51
A54: 52 | E54: NO | G54: 52
A55: 53 | E55: NO | G55: 53
A56: 54 | E56: NO | G56: 54
A57: 55 | E57: NO | G57: 55
A58: 56 | E58: NO | G58: 56
A59: 57 | E59: NO | G59: 57
A60: 58 | E60: NO | G60: 58
A61: 59 | E61: NO | G61: 59
A62: 60 | E62: NO | G62: 60
A63: 61 | E63: NO | G63: 61
A64: 62 | E64: NO | G64: 62
A65: 63 | E65: NO | G65: 63
A66: 64 | E66: NO | G66: 64
A67: 65 | E67: =+IF(ISERROR(VLOOKUP(B67,COMPRADORES,1,FALSE)),"NO","SI") -> NO | G67: 65
A68: 66 | E68: NO | G68: 66
A69: 67 | E69: NO | G69: 67
A70: 68 | E70: NO | G70: 68
A71: 69 | E71: NO | G71: 69
A72: 70 | E72: NO | G72: 70
A73: 71 | E73: NO | G73: 71
A74: 72 | E74: NO | G74: 72
A75: 73 | E75: NO | G75: 73
A76: 74 | E76: NO | G76: 74
A77: 75 | E77: NO | G77: 75
A78: 76 | E78: NO | G78: 76
A79: 77 | E79: NO | G79: 77
A80: 78 | E80: NO | G80: 78
A81: 79 | E81: NO | G81: 79
A82: 80 | E82: NO | G82: 80
A83: 81 | E83: NO | G83: 81
A84: 82 | E84: NO | G84: 82
A85: 83 | E85: NO | G85: 83
A86: 84 | E86: NO | G86: 84
A87: 85 | E87: NO | G87: 85
A88: 86 | E88: NO | G88: 86
A89: 87 | E89: NO | G89: 87
A90: 88 | E90: NO | G90: 88
A91: 89 | E91: NO | G91: 89
A92: 90 | E92: NO | G92: 90
A93: 91 | E93: NO | G93: 91
A94: 92 | E94: NO | G94: 92
A95: 93 | E95: NO | G95: 93
A96: 94 | E96: NO | G96: 94
A97: 95 | E97: NO | G97: 95
A98: 96 | E98: NO | G98: 96
A99: 97 | E99: NO | G99: 97
A100: 98 | E100: NO | G100: 98
A101: 99 | E101: NO | G101: 99
A102: 100 | E102: NO | G102: 100
A103: 101 | E103: NO | G103: 101
A104: 102 | E104: NO | G104: 102
A105: 103 | E105: NO | G105: 103
A106: 104 | E106: NO | G106: 104
A107: 105 | E107: NO | G107: 105
A108: 106 | E108: NO | G108: 106
A109: 107 | E109: NO | G109: 107
A110: 108 | E110: NO | G110: 108
A111: 109 | E111: NO | G111: 109
A112: 110 | E112: NO | G112: 110
A113: 111 | E113: NO | G113: 111
A114: 112 | E114: NO | G114: 112
A115: 113 | E115: NO | G115: 113
A116: 114 | E116: NO | G116: 114
A117: 115 | E117: NO | G117: 115
A118: 116 | E118: NO | G118: 116
A119: 117 | E119: NO | G119: 117
A120: 118 | E120: NO | G120: 118
A121: 119 | E121: NO | G121: 119
A122: 120 | E122: NO | G122: 120
A123: 121 | E123: NO | G123: 121
A124: 122 | E124: NO | G124: 122
A125: 123 | E125: NO | G125: 123
A126: 124 | E126: NO | G126: 124
A127: 125 | E127: NO | G127: 125
A128: 126 | E128: NO | G128: 126
A129: 127 | E129: NO | G129: 127
A130: 128 | E130: NO | G130: 128
A131: 129 | E131: =+IF(ISERROR(VLOOKUP(B131,COMPRADORES,1,FALSE)),"NO","SI") -> NO | G131: 129
A132: 130 | E132: NO | G132: 130
A133: 131 | E133: NO | G133: 131
A134: 132 | E134: NO | G134: 132
A135: 133 | E135: NO | G135: 133
A136: 134 | E136: NO | G136: 134
A137: 135 | E137: NO | G137: 135
A138: 136 | E138: NO | G138: 136
A139: 137 | E139: NO | G139: 137
A140: 138 | E140: NO | G140: 138
A141: 139 | E141: NO | G141: 139
A142: 140 | E142: NO | G142: 140
A143: 141 | E143: NO | G143: 141
A144: 142 | E144: NO | G144: 142
A145: 143 | E145: NO | G145: 143
A146: 144 | E146: NO | G146: 144
A147: 145 | E147: NO | G147: 145
A148: 146 | E148: NO | G148: 146
A149: 147 | E149: NO | G149: 147
A150: 148 | E150: NO | G150: 148
A151: 149 | E151: NO | G151: 149
A152: 150 | E152: NO | G152: 150
A153: 151 | E153: NO | G153: 151
A154: 152 | E154: NO | G154: 152
A155: 153 | E155: NO | G155: 153
A156: 154 | E156: NO | G156: 154
A157: 155 | E157: NO | G157: 155
A158: 156 | E158: NO | G158: 156
A159: 157 | E159: NO | G159: 157
A160: 158 | E160: NO | G160: 158
A161: 159 | E161: NO | G161: 159
A162: 160 | E162: NO | G162: 160
A163: 161 | E163: NO | G163: 161
A164: 162 | E164: NO | G164: 162
A165: 163 | E165: NO | G165: 163
A166: 164 | E166: NO | G166: 164
A167: 165 | E167: NO | G167: 165
A168: 166 | E168: NO | G168: 166
A169: 167 | E169: NO | G169: 167
A170: 168 | E170: NO | G170: 168
A171: 169 | E171: NO | G171: 169
A172: 170 | E172: NO | G172: 170
A173: 171 | E173: NO | G173: 171
A174: 172 | E174: NO | G174: 172
A175: 173 | E175: NO | G175: 173
A176: 174 | E176: NO | G176: 174
A177: 175 | E177: NO | G177: 175
A178: 176 | E178: NO | G178: 176
A179: 177 | E179: NO | G179: 177
A180: 178 | E180: NO | G180: 178
A181: 179 | E181: NO | G181: 179
A182: 180 | E182: NO | G182: 180
A183: 181 | E183: NO | G183: 181
A184: 182 | E184: NO | G184: 182
A185: 183 | E185: NO | G185: 183
A186: 184 | E186: NO | G186: 184
A187: 185 | E187: NO | G187: 185
A188: 186 | E188: NO | G188: 186
A189: 187 | E189: NO | G189: 187
A190: 188 | E190: NO | G190: 188
A191: 189 | E191: NO | G191: 189
A192: 190 | E192: NO | G192: 190
A193: 191 | E193: NO | G193: 191
A194: 192 | E194: NO | G194: 192
A195: 193 | E195: =+IF(ISERROR(VLOOKUP(B195,COMPRADORES,1,FALSE)),"NO","SI") -> NO | G195: 193
A196: 194 | E196: NO | G196: 194
A197: 195 | E197: NO | G197: 195
A198: 196 | E198: NO | G198: 196
A199: 197 | E199: NO | G199: 197
A200: 198 | E200: NO | G200: 198
... 802 more rows

Sheet OFERTA INICIAL
B2: Precio de inicio | C2: =+'DEMANDA REGULADA'!F5 -> 0 | D2: $/kWh
A4: ID | B4: VENDEDORES | C4: OFERTA INICIAL
A5: 1 | B5: =+IF(INDEX(VENDEDORES,A5)="","",INDEX(VENDEDORES,A5)) ->  | D5: =+PARTICIPANTES!B3 -> 0
A6: 2 | D6: =+PARTICIPANTES!B4 -> 0
A7: 3 | D7: =+PARTICIPANTES!B5 -> 0
A8: 4 | D8: =+PARTICIPANTES!B6 -> 0
A9: 5 | D9: =+PARTICIPANTES!B7 -> 0
A10: 6 | D10: =+PARTICIPANTES!B8 -> 0
A11: 7 | D11: =+PARTICIPANTES!B9 -> 0
A12: 8 | D12: =+PARTICIPANTES!B10 -> 0
A13: 9 | D13: =+PARTICIPANTES!B11 -> 0
A14: 10 | D14: =+PARTICIPANTES!B12 -> 0
A15: 11 | D15: =+PARTICIPANTES!B13 -> 0
A16: 12 | D16: =+PARTICIPANTES!B14 -> 0
A17: 13 | D17: =+PARTICIPANTES!B15 -> 0
A18: 14 | D18: =+PARTICIPANTES!B16 -> 0
A19: 15 | D19: =+PARTICIPANTES!B17 -> 0
A20: 16 | D20: =+PARTICIPANTES!B18 -> 0
A21: 17 | D21: =+PARTICIPANTES!B19 -> 0
A22: 18 | D22: =+PARTICIPANTES!B20 -> 0
A23: 19 | D23: =+PARTICIPANTES!B21 -> 0
A24: 20 | D24: =+PARTICIPANTES!B22 -> 0
B25: TOTAL | C25: =+SUM(C5:C24) -> 0

Sheet SUBASTADOR
A4: RONDA ANTERIOR | F4: Precio inicio Subasta | H4: =+PRECIO_INICIAL -> 0 | I4: $/kWh
A5: Ronda número: | D5: =+MAX(RONDAS!$A$3:$A$52) -> 0 | F5: Oferta Inicial Agregada | H5: =+'OFERTA INICIAL'!C25 -> 0
A6: Precio de inicio | D6: =+INDEX(RONDAS,RONDA_ACTUAL,2) -> 0 | F6: Demanda R + NR en el precio pp1 | H6: 0
A7: Precio de finalización | D7: =+IF(RONDA_ACTUAL=0,H4,INDEX(RONDAS,RONDA_ACTUAL,3)) -> 0 | F7: Precio de cierre R | I7: $/kWh
A8: VARIABLES AL PRECIO DE INICIO | F8: Precio de cierre NR | I8: $/kWh
A9: Margen de preferencia de la oferta (MPO) | D9: =+INDEX(RONDAS,RONDA_ACTUAL,4) -> 0 | F9: Ventas R | H9: =+ASIGNACIONES!C3 -> 0
A10: Precio del producto - DNR | D10: =+INDEX(RONDAS,RONDA_ACTUAL,5) -> 0 | F10: Ventas NR | H10: =+ASIGNACIONES!C4 -> 0
A11: Oferta agregada | D11: =+IF(RONDA_ACTUAL=1,H5,INDEX(RONDAS,RONDA_ACTUAL,6)) -> 0
A12: DR | D12: =+INDEX(RONDAS,RONDA_ACTUAL,7) -> 0
A13: DNR | D13: =+INDEX(RONDAS,RONDA_ACTUAL,8) -> 0
A14: Exceso de oferta - DR | D14: =+INDEX(RONDAS,RONDA_ACTUAL,9) -> 0
A15: Exceso de oferta - DNR | D15: =+INDEX(RONDAS,RONDA_ACTUAL,10) -> 0
A16: Exceso de oferta porcentual - DR | D16: =+INDEX(RONDAS,RONDA_ACTUAL,11) -> 0
A17: Exceso de oferta porcentual- DNR | D17: =+INDEX(RONDAS,RONDA_ACTUAL,12) -> 0
A18: VARIABLES AL PRECIO DE FINALIZACIÓN
A19: Margen de preferencia de la oferta (MPO) | D19: =+INDEX(RONDAS,RONDA_ACTUAL,13) -> 0
A20: Precio del producto - DNR | D20: =+INDEX(RONDAS,RONDA_ACTUAL,14) -> 0
A21: Oferta agregada | D21: =+INDEX(RONDAS,RONDA_ACTUAL,15) -> 0
A22: DR | D22: =+INDEX(RONDAS,RONDA_ACTUAL,16) -> 0
A23: DNR | D23: =+INDEX(RONDAS,RONDA_ACTUAL,17) -> 0
A24: Exceso de oferta - DR | D24: =+INDEX(RONDAS,RONDA_ACTUAL,18) -> 0
A25: Exceso de oferta - DNR | D25: =+INDEX(RONDAS,RONDA_ACTUAL,19) -> 0
A26: Exceso de oferta porcentual - DR | D26: =+INDEX(RONDAS,RONDA_ACTUAL,20) -> 0
A27: Exceso de oferta porcentual- DNR | D27: =+INDEX(RONDAS,RONDA_ACTUAL,21) -> 0
A28: Última ronda? | D28: =+INDEX(RONDAS,RONDA_ACTUAL,22) -> 0
A30: PROXIMA RONDA
A31: Ronda número: | D31: =+D5+1 -> 1
A32: Precio de inicio de la ronda | D32: =+D7 -> 0
A33: Precio de finalización de la ronda

Sheet OFERTAS
B2: RONDA
B3: Ronda número: | D3: =+RONDA_ACTUAL -> 0
B4: Precio de inicio de la ronda | D4: =+SUBASTADOR!D6 -> 0 | F4: $/kWh
B5: Precio de finalización de la ronda | D5: =+SUBASTADOR!D7 -> 0 | F5: $/kWh
B6: VARIABLES AL PRECIO DE INICIO
B7: MPO | D7: =+SUBASTADOR!D9 -> 0 | F7: $/kWh
B8: Precio del producto - DNR | D8: =+SUBASTADOR!D10 -> 0 | F8: $/kWh
B9: Oferta agregada | D9: =+SUBASTADOR!D11 -> 0
B11: ID | C11: 1
B12: NOMBRE | C12: =+INDEX(VENDEDORES,C11) -> 0
B14: MPR | D14: $/kWh
B15: MPNR | D15: $/kWh | F15: PARAMETROS GRÁFICA
F16: Punto
C17: Precio ($/kWh) | D17: Cantidad | F17: Precio R | G17: =+INDEX($C$20:$C$24,D39) -> 0
F18: Cantidad | G18: =+INDEX($D$20:$D$24,D39) -> 0
B19: 0 | C19: =+D4 -> 0 | D19: 0 | F19: MPO max | G19: 10
B20: 1 | F20: MPO min | G20: -10
B21: 2
B22: 3
B23: 4
B24: 5
B25: 6 | C25: =+D5 -> 0 | D25: =+MIN(D19:D24) -> 0
D39: 1 | E39: =+INDEX(E43:E47,$D$39) ->  | F39: =+INDEX(F43:F47,$D$39) ->  | O39: =+INDEX(O43:O47,$D$39) ->  | P39: =+INDEX(P43:P47,$D$39) -> 
E41: REGULADO | O41: NO REGULADO
C42: Precio ($/kWh) | D42: Cantidad | E42: G1 | F42: G2 | G42: G3 | H42: G4 | I42: G5 | J42: G6 | K42: G7 | L42: G8 | M42: G9 | N42: G10 | O42: G1 | P42: G2 | Q42: G3 | R42: G4 | S42: G5 | T42: G6 | U42: G7 | V42: G8 | W42: G9 | X42: G10
B43: 1 | C43: =+IF(C20<>"",C20,"") ->  | D43: =+IF(D20<>"",D20,"") ->  | E43: =+IF(E$48>=$C$14,1,IF(E$48<$C$15,0,(E$48-$C$15)/($C$14-$C$15)))*$D43 ->  | F43: =+IF(F$48>=$C$14,1,IF(F$48<$C$15,0,(F$48-$C$15)/($C$14-$C$15)))*$D43 ->  | O43: =+$D43-E43 ->  | P43: =+$D43-F43 ->  | T43: =+$D43-J43 ->  | U43: =+$D43-K43 ->  | V43: =+$D43-L43 ->  | W43: =+$D43-M43 ->  | X43: =+$D43-N43 -> 
B44: 2 | C44: =+IF(C21<>"",C21,"") ->  | E44: =+IF(E$48>=$C$14,1,IF(E$48<$C$15,0,(E$48-$C$15)/($C$14-$C$15)))*$D44 ->  | O44: =+$D44-E44 ->  | P44: =+$D44-F44 ->  | Q44: =+$D44-G44 ->  | R44: =+$D44-H44 ->  | S44: =+$D44-I44 ->  | T44: =+$D44-J44 ->  | U44: =+$D44-K44 ->  | V44: =+$D44-L44 ->  | W44: =+$D44-M44 ->  | X44: =+$D44-N44 -> 
B45: 3 | C45: =+IF(C22<>"",C22,"") -> 
B46: 4 | C46: =+IF(C23<>"",C23,"") -> 
B47: 5 | C47: =+IF(C24<>"",C24,"") -> 
D48: MPO | E48: =+G19 -> 10 | F48: =+(($E$48-$N$48)/9)*8+$N$48 -> 7.777777778 | G48: =+(($E$48-$N$48)/9)*7+$N$48 -> 5.555555556 | H48: =+(($E$48-$N$48)/9)*6+$N$48 -> 3.333333333 | I48: =+(($E$48-$N$48)/9)*5+$N$48 -> 1.111111111 | J48: =+(($E$48-$N$48)/9)*4+$N$48 -> -1.111111111 | K48: =+(($E$48-$N$48)/9)*3+$N$48 -> -3.333333333 | L48: =+(($E$48-$N$48)/9)*2+$N$48 -> -5.555555556 | M48: =+(($E$48-$N$48)/9)+$N$48 -> -7.777777778 | N48: =+G20 -> -10
D49: PNR | E49: =+$G$17-E48 -> -10 | F49: =+$G$17-F48 -> -7.777777778 | G49: =+$G$17-G48 -> -5.555555556 | H49: -3.333333333 | I49: -1.111111111 | J49: 1.111111111 | K49: 3.333333333 | L49: 5.555555556 | M49: 7.777777778 | N49: 10
E50: =+E48 -> 10 | F50: =+F48 -> 7.777777778 | G50: 5.555555556 | H50: 3.333333333 | I50: 1.111111111 | J50: -1.111111111 | K50: -3.333333333 | L50: -5.555555556 | M50: -7.777777778 | N50: -10
C53: Precio ($/kWh) | D53: Cantidad
B55: 0 | C55: =+IF(C19="","",C19) -> 0 | D55: =+D19 -> 0
B56: 0' | C56: =+C57+0.001 -> 0.001 | D56: =+D55 -> 0
B57: 1 | C57: =+C20 -> 0 | D57: =+D20 -> 0
B58: 1' | C58: =+C59+0.001 -> 0.001 | D58: =+D57 -> 0
B59: 2 | C59: =+C21 -> 0 | D59: =+D21 -> 0
B60: 2' | C60: =+C61+0.001 -> 0.001 | D60: =+D59 -> 0
B61: 3 | C61: =+C22 -> 0 | D61: =+D22 -> 0
B62: 3' | C62: =+C63+0.001 -> 0.001 | D62: =+D61 -> 0
B63: 4 | C63: =+C23 -> 0 | D63: =+D23 -> 0
B64: 4' | C64: =+C65+0.001 -> 0.001 | D64: =+D63 -> 0
B65: 5 | C65: =+C24 -> 0 | D65: =+D24 -> 0
B66: 6 | C66: =+C25 -> 0 | D66: =+D25 -> 0
C68: Precio ($/kWh) | D68: Cantidad
B70: 0 | C70: =+C55 -> 0 | D70: =+D55 -> 0
B71: 0' | C71: =+MAX(C56:$C$66) -> 0.001 | D71: =+MAX(D56:$D$66) -> 0
B72: 1 | C72: =+MAX(C57,C57:$C$66) -> 0.001 | D72: =+MAX(D57:$D$66) -> 0
B73: 1' | C73: =+MAX(C58,C58:$C$66) -> 0.001 | D73: =+MAX(D58:$D$66) -> 0
B74: 2 | C74: =+MAX(C59,C59:$C$66) -> 0.001 | D74: =+MAX(D59:$D$66) -> 0
B75: 2' | C75: =+MAX(C60,C60:$C$66) -> 0.001 | D75: =+MAX(D60:$D$66) -> 0
B76: 3 | C76: =+MAX(C61,C61:$C$66) -> 0.001 | D76: =+MAX(D61:$D$66) -> 0
B77: 3' | C77: =+MAX(C62,C62:$C$66) -> 0.001 | D77: =+MAX(D62:$D$66) -> 0
B78: 4 | C78: =+MAX(C63,C63:$C$66) -> 0.001 | D78: =+MAX(D63:$D$66) -> 0
B79: 4' | C79: =+MAX(C64,C64:$C$66) -> 0.001 | D79: =+MAX(D64:$D$66) -> 0
B80: 5 | C80: =+MAX(C65,C65:$C$66) -> 0 | D80: =+MAX(D65:$D$66) -> 0
B81: 6 | C81: =+MAX(C66,C66:$C$66) -> 0 | D81: =+MAX(D66:$D$66) -> 0

Sheet ASIGNACIONES
A1: Precio de cierre R | C1: =+P_CIERRE -> 0
A2: Precio de cierre NR | C2: =+SUBASTADOR!H8 -> 0
A3: Ventas R | C3: =+SUM(C7:C26) -> 0
A4: Ventas NR | C4: =+SUM(D7:D26) -> 0
A6: ID | B6: VENDEDORES | C6: VENTAS R | D6: VENTAS NR | F6: ID | G6: COMPRADORES DNR | H6: COMPRAS
A7: 1 | B7: =+IF(INDEX(VENDEDORES,A7)<>"",INDEX(VENDEDORES,A7),"") ->  | F7: 1 | G7: =+IF(INDEX(COMPRADORES,A7)<>"",INDEX(COMPRADORES,A7),"") -> 
A8: 2 | F8: 2
A9: 3 | F9: 3
A10: 4 | F10: 4
A11: 5 | F11: 5
A12: 6 | F12: 6
A13: 7 | F13: 7
A14: 8 | F14: 8
A15: 9 | F15: 9
A16: 10 | F16: 10
A17: 11 | F17: 11
A18: 12 | F18: 12
A19: 13 | F19: 13
A20: 14 | F20: 14
A21: 15 | F21: 15
A22: 16 | F22: 16
A23: 17 | F23: 17
A24: 18 | F24: 18
A25: 19 | F25: 19
A26: 20 | F26: 20

Sheet OFERTA ACUMULADA
B2: CURVA DE OFERTA POR AGENTE | G2: PREFERENCIAS ENTRE PRODUCTOS | L2: CURVA AGREGADA
A3: ID | B3: AGENTE | C3: PRECIO ($/kWh) | D3: NUM PRODUCTOS | E3: RONDA | G3: AGENTE | H3: MPR | I3: MPNR | J3: RONDA | L3: PRECIO ($/kWh) | M3: NUM PRODUCTOS
A4: 1
A5: 2
A6: 3
A7: 4
A8: 5
A9: 6
A10: 7
A11: 8
A12: 9
A13: 10
A14: 11
A15: 12
A16: 13
A17: 14
A18: 15
A19: 16
A20: 17
A21: 18
A22: 19
A23: 20
A24: 21
A25: 22
A26: 23
A27: 24
A28: 25
A29: 26
A30: 27
A31: 28
A32: 29
A33: 30
A34: 31
A35: 32
A36: 33
A37: 34
A38: 35
A39: 36
A40: 37
A41: 38
A42: 39
A43: 40
A44: 41
A45: 42
A46: 43
A47: 44
A48: 45
A49: 46
A50: 47
A51: 48
A52: 49
A53: 50
A54: 51
A55: 52
A56: 53
A57: 54
A58: 55
A59: 56
A60: 57
A61: 58
A62: 59
A63: 60
A64: 61
A65: 62
A66: 63
A67: 64
A68: 65
A69: 66
A70: 67
A71: 68
A72: 69
A73: 70
A74: 71
A75: 72
A76: 73
A77: 74
A78: 75
A79: 76
A80: 77
A81: 78
A82: 79
A83: 80
A84: 81
A85: 82
A86: 83
A87: 84
A88: 85
A89: 86
A90: 87
A91: 88
A92: 89
A93: 90
A94: 91
A95: 92
A96: 93
A97: 94
A98: 95
A99: 96
A100: 97
A101: 98
A102: 99
A103: 100
A104: 101
A105: 102
A106: 103
A107: 104
A108: 105
A109: 106
A110: 107
A111: 108
A112: 109
A113: 110
A114: 111
A115: 112
A116: 113
A117: 114
A118: 115
A119: 116
A120: 117
A121: 118
A122: 119
A123: 120
A124: 121
A125: 122
A126: 123
A127: 124
A128: 125
A129: 126
A130: 127
A131: 128
A132: 129
A133: 130
A134: 131
A135: 132
A136: 133
A137: 134
A138: 135
A139: 136
A140: 137
A141: 138
A142: 139
A143: 140
A144: 141
A145: 142
A146: 143
A147: 144
A148: 145
A149: 146
A150: 147
A151: 148
A152: 149
A153: 150
A154: 151
A155: 152
A156: 153
A157: 154
A158: 155
A159: 156
A160: 157
A161: 158
A162: 159
A163: 160
A164: 161
A165: 162
A166: 163
A167: 164
A168: 165
A169: 166
A170: 167
A171: 168
A172: 169
A173: 170
A174: 171
A175: 172
A176: 173
A177: 174
A178: 175
A179: 176
A180: 177
A181: 178
A182: 179
A183: 180
A184: 181
A185: 182
A186: 183
A187: 184
A188: 185
A189: 186
A190: 187
A191: 188
A192: 189
A193: 190
A194: 191
A195: 192
A196: 193
A197: 194
A198: 195
A199: 196
A200: 197
A201: 198
... 802 more rows

Sheet RONDAS
D1: VARIABLES AL PRECIO DE INICIO | M1: VARIABLES AL PRECIO DE FINALIZACIÓN | W1: GRÁFICA
A2: ID | B2: Precio de inicio de la ronda | C2: Precio de finalización de la ronda | D2: MPO | E2: Precio del producto - DNR | F2: Oferta agregada | G2: DR | H2: DNR | I2: Exceso de oferta - DR | J2: Exceso de oferta - DNR | K2: Exceso de oferta porcentual - DR | L2: Exceso de oferta porcentual- DNR | M2: MPO | N2: Precio del producto - DNR | O2: Oferta agregada | P2: DR | Q2: DNR | R2: Exceso de oferta - DR | S2: Exceso de oferta - DNR | T2: Exceso de oferta porcentual - DR | U2: Exceso de oferta porcentual- DNR | V2: Última ronda? | W2: OFERTA R | X2: OFERTANR
W3: =+R3+P3 -> 0 | X3: =+S3+Q3 -> 0
W4: =+R4+P4 -> 0 | X4: =+S4+Q4 -> 0
W5: 0 | X5: 0
W6: 0 | X6: 0
W7: 0 | X7: 0
W8: 0 | X8: 0
W9: 0 | X9: 0
W10: 0 | X10: 0
W11: 0 | X11: 0
W12: 0 | X12: 0
W13: 0 | X13: 0
W14: 0 | X14: 0
W15: 0 | X15: 0
W16: 0 | X16: 0
W17: 0 | X17: 0
W18: 0 | X18: 0
W19: 0 | X19: 0
W20: 0 | X20: 0
W21: 0 | X21: 0
W22: 0 | X22: 0
W23: 0 | X23: 0
W24: 0 | X24: 0
W25: 0 | X25: 0
W26: 0 | X26: 0
W27: 0 | X27: 0
W28: 0 | X28: 0
W29: 0 | X29: 0
W30: 0 | X30: 0
W31: 0 | X31: 0
W32: 0 | X32: 0
W33: 0 | X33: 0
W34: 0 | X34: 0
W35: 0 | X35: 0
W36: 0 | X36: 0
W37: 0 | X37: 0
W38: 0 | X38: 0
W39: 0 | X39: 0
W40: 0 | X40: 0
W41: 0 | X41: 0
W42: 0 | X42: 0
W43: 0 | X43: 0
W44: 0 | X44: 0
W45: 0 | X45: 0
W46: 0 | X46: 0
W47: 0 | X47: 0
W48: 0 | X48: 0
W49: 0 | X49: 0
W50: 0 | X50: 0
W51: 0 | X51: 0
W52: 0 | X52: 0
